fUSD/lending_fUSD_20250724
["ID","MTS","AMOUNT","RATE_DAILY","PERIOD"]
[374619761,1753381845437,-151.45981715,0.00035257,2]
[374619763,1753381845448,-1917.09269375,0.00035261,2]
[374619765,1753381845458,-236.72,0.00035271,2]
[374619767,1753381845467,-300.0,0.00035288,2]
[374619769,1753381845477,-152.67672629,0.00035313,2]
[374619772,1753381845486,-151.45981715,0.00035316,2]
[374619774,1753381845496,-500.0,0.00035326,30]
[374619775,1753381845505,-1863.41377506,0.00035337,2]
[374619777,1753381845515,-200.0,0.00035349,2]
[374619779,1753381845524,-1917.09269375,0.00035355,2]
[374619781,1753381845534,-151.45981715,0.00035374,2]
[374619783,1753381845543,-1000.0,0.000354,7]
[374619785,1753381845554,-269.17,0.00035427,2]
[374619788,1753381845564,-151.45981715,0.00035432,2]
[374619790,1753381845574,-1863.41377506,0.00035434,2]
[374619792,1753381845584,-1917.09269375,0.00035448,2]
[374619794,1753381845594,-7000.0,0.0003547,2]
[374619796,1753381845603,-744.728991,0.00035481,7]
[374619798,1753381845612,-744.728991,0.00035481,7]
[374619799,1753381845622,-3070.971,0.00035481,2]
[374619801,1753381845632,-890.0,0.00035481,2]
[374619804,1753381845642,-151.45981715,0.00035491,2]
[374619805,1753381845652,-8957.4945086,0.000355,16]
[374619808,1753381845661,-1000.0,0.0003551,120]
[374619809,1753381845671,-152.67672629,0.0003552,2]
[374619811,1753381845681,-153.30119565,0.0003552,2]
[374619813,1753381845691,-200.0,0.00035529,10]
[374619816,1753381845701,-1863.41377506,0.00035532,2]
[374619817,1753381845711,-150.0,0.0003554,2]
[374619819,1753381845721,-1917.09269375,0.00035541,2]
[374619821,1753381845731,-151.45981715,0.00035549,2]
[374619824,1753381845741,-168.0,0.00035556,2]
[374619826,1753381845751,-150.0,0.00035562,2]
[374619828,1753381845761,-150.0,0.00035564,2]
[374619830,1753381845770,-500.0,0.00035566,2]
[374619832,1753381845780,-500.0,0.00035566,2]
[374619834,1753381845790,-500.0,0.00035566,2]
[374619835,1753381845799,-500.0,0.00035566,2]
[374619837,1753381845810,-500.0,0.00035566,2]
[374619840,1753381845820,-1316.0,0.00035572,2]
[374619841,1753381845830,-287.99601137,0.00035572,2]
[374619843,1753381845839,-150.0,0.00035572,2]
[374619845,1753381845848,-150.0,0.00035572,2]
[374619847,1753381845858,-150.0,0.00035573,2]
[374619849,1753381845871,-150.5,0.00035596,120]
[374619852,1753381845882,-500.0,0.000356,30]
[374619853,1753381845891,-24233.16717924,0.000356,9]
[374619855,1753381845900,-150.5,0.00035606,120]
[374619857,1753381845910,-292.47,0.00035606,120]
[374619859,1753381845921,-151.45981715,0.00035607,2]
[374619861,1753381845934,-150.0,0.00035612,2]
[374619863,1753381845946,-150.5,0.00035616,120]
[374619865,1753381845956,-150.5,0.00035616,120]
[374619867,1753381845966,-154.83,0.00035617,2]
[374619869,1753381845976,-153.06,0.0003562,2]
[374619872,1753381845986,-150.0,0.00035621,2]
[374619873,1753381845996,-150.0,0.00035623,2]
[374619875,1753381846006,-316.016382,0.00035626,7]
[374619877,1753381846015,-316.016382,0.00035626,7]
[374619879,1753381846025,-170666.26113369,0.00035627,7]
[374619881,1753381846035,-143892.1329304,0.00035627,7]
[374619883,1753381846044,-151.0,0.00035627,7]
[374619885,1753381846053,-151.0,0.00035627,7]
[374619887,1753381846064,-367.532462,0.00035627,7]
[374619889,1753381846073,-367.532462,0.00035627,7]
[374619891,1753381846083,-151.0,0.00035627,7]
[374619893,1753381846094,-260.6339,0.00035627,7]
[374619895,1753381846103,-260.6339,0.00035627,7]
[374619897,1753381846113,-260.6339,0.00035627,7]
[374619899,1753381846123,-260.6339,0.00035627,7]
[374619901,1753381846133,-744.728991,0.00035627,7]
[374619903,1753381846143,-744.728991,0.00035627,7]
[374619905,1753381846152,-316.016382,0.00035627,7]
[374619907,1753381846162,-316.016382,0.00035627,7]
[374619909,1753381846171,-151.0,0.00035627,7]
[374619911,1753381846181,-151.0,0.00035627,7]
[374619913,1753381846190,-151.0,0.00035627,7]
[374619915,1753381846200,-151.0,0.00035627,7]
[374619917,1753381846211,-404.263357,0.00035627,7]
[374619919,1753381846220,-404.263357,0.00035627,7]
[374619921,1753381846230,-404.263357,0.00035627,7]
[374619925,1753381846240,-404.263357,0.00035627,7]
[374619926,1753381846250,-1863.41377506,0.00035629,2]
[374619929,1753381846259,-150.0,0.00035633,2]
[374619932,1753381846269,-1917.09269375,0.00035634,2]
[374619934,1753381846279,-260.6339,0.0003564,7]
[374619936,1753381846289,-260.6339,0.0003564,7]
[374619938,1753381846298,-744.728991,0.0003564,7]
[374619940,1753381846307,-744.728991,0.0003564,7]
[374619942,1753381846317,-316.016382,0.0003564,7]
[374619944,1753381846327,-316.016382,0.0003564,7]
[374619946,1753381846337,-1000.0,0.0003564,2]
[374619948,1753381846347,-1000.0,0.0003564,2]
[374619950,1753381846357,-1000.0,0.0003564,2]
[374619952,1753381846367,-1000.0,0.0003564,2]
[374619954,1753381846376,-1000.0,0.0003564,2]
[374619956,1753381846386,-151.0,0.0003564,7]
[374619958,1753381846395,-1000.0,0.0003564,2]
[374619960,1753381846405,-1000.0,0.0003564,2]
[374619962,1753381846415,-1000.0,0.0003564,2]
[374619964,1753381846424,-1000.0,0.0003564,2]
[374619966,1753381846434,-1000.0,0.0003564,2]
[374619968,1753381846444,-151.0,0.0003564,7]
[374619970,1753381846454,-1000.0,0.0003564,2]
[374619972,1753381846464,-1000.0,0.0003564,2]
[374619974,1753381846474,-1000.0,0.0003564,2]
[374619976,1753381846484,-1000.0,0.0003564,2]
[374619978,1753381846493,-1000.0,0.0003564,2]
[374619980,1753381846503,-1000.0,0.0003564,2]
[374619982,1753381846512,-1000.0,0.0003564,2]
[374619984,1753381846522,-1000.0,0.0003564,2]
[374619986,1753381846534,-1000.0,0.0003564,2]
[374619988,1753381846543,-1000.0,0.0003564,2]
[374619990,1753381846553,-1000.0,0.0003564,2]
[374619992,1753381846562,-221.7483,0.0003564,2]
[374619994,1753381846572,-404.263357,0.0003564,7]
[374619997,1753381846583,-404.263357,0.0003564,7]
[374619998,1753381846594,-150.0,0.00035664,2]
[374620000,1753381846603,-151.45981715,0.00035666,2]
[374620002,1753381846613,-168.0,0.00035671,2]
[374620004,1753381846623,-500.0,0.00035673,5]
[374620007,1753381846632,-299.73315924,0.00035673,5]
[374620009,1753381846642,-500.0,0.00035673,5]
[374620011,1753381846652,-150.0,0.00035683,2]
[374620013,1753381846661,-7899.31456608,0.00035693,2]
[374620015,1753381846671,-31134.1433979,0.000357,4]
[374620017,1753381846681,-150.0,0.00035705,2]
[374620018,1753381846690,-150.0,0.0003571,2]
[374620021,1753381846700,-500.0,0.00035713,2]
[374620022,1753381846709,-150.0,0.00035713,2]
[374620024,1753381846719,-150.0,0.00035713,2]
[374620027,1753381846729,-150.0,0.00035713,2]
[374620028,1753381846739,-201.0075076,0.00035713,2]
[374620031,1753381846748,-150.0,0.00035713,2]
[374620033,1753381846757,-150.0,0.00035713,2]
[374620035,1753381846767,-150.0,0.00035713,2]
[374620036,1753381846777,-150.0,0.00035713,2]
[374620038,1753381846787,-150.0,0.00035713,2]
[374620040,1753381846796,-500.0,0.00035713,2]
[374620042,1753381846806,-150.0,0.00035713,2]
[374620044,1753381846815,-150.1273409,0.00035713,2]
[374620046,1753381846825,-150.0,0.00035713,2]
[374620048,1753381846834,-150.0,0.00035713,2]
[374620050,1753381846844,-150.0,0.00035713,2]
[374620052,1753381846853,-150.0,0.00035713,2]
[374620055,1753381846864,-150.0,0.00035713,2]
[374620056,1753381846876,-500.0,0.00035713,2]
[374620058,1753381846886,-150.0,0.00035713,2]
[374620059,1753381846895,-150.0,0.00035713,2]
[374620060,1753381846905,-200.0,0.00035713,2]
[374620061,1753381846915,-150.0,0.00035713,2]
[374620062,1753381846925,-150.0,0.00035713,2]
[374620063,1753381846935,-150.0,0.00035713,2]
[374620064,1753381846944,-500.0,0.00035713,2]
[374620065,1753381846954,-150.0,0.00035713,2]
[374620066,1753381846963,-150.0,0.00035713,2]
[374620067,1753381846973,-500.0,0.00035713,2]
[374620068,1753381846983,-150.0,0.00035713,2]
[374620069,1753381846993,-500.0,0.00035713,2]
[374620070,1753381847003,-150.0,0.00035713,2]
[374620071,1753381847012,-150.69874847,0.00035713,2]
[374620072,1753381847022,-201.83705436,0.00035713,2]
[374620073,1753381847032,-500.0,0.00035713,2]
[374620074,1753381847041,-150.0,0.00035713,2]
[374620075,1753381847051,-500.0,0.00035713,2]
[374620076,1753381847060,-150.0,0.00035713,2]
[374620077,1753381847070,-150.0,0.00035713,2]
[374620078,1753381847080,-150.0,0.00035713,2]
[374620079,1753381847089,-150.0,0.00035713,2]
[374620080,1753381847099,-500.0,0.00035713,2]
[374620081,1753381847109,-150.0,0.00035713,2]
[374620082,1753381847119,-500.0,0.00035713,2]
[374620083,1753381847129,-156.53495736,0.00035724,30]
[374620084,1753381847139,-156.53495736,0.00035724,30]
[374620085,1753381847149,-156.53495736,0.00035724,30]
[374620086,1753381847158,-156.53495736,0.00035724,30]
[374620087,1753381847168,-156.53495736,0.00035724,30]
[374620088,1753381847177,-156.53495736,0.00035724,30]
[374620089,1753381847187,-156.53495736,0.00035724,30]
[374620090,1753381847197,-156.53495736,0.00035724,30]
[374620091,1753381847207,-156.53495736,0.00035724,30]
[374620092,1753381847217,-156.53495736,0.00035724,30]
[374620093,1753381847227,-156.53495736,0.00035724,30]
[374620094,1753381847238,-156.53495736,0.00035724,30]
[374620095,1753381847248,-156.53,0.00035724,30]
[374620096,1753381847258,-237.41135199,0.00035724,30]
[374620097,1753381847268,-237.41135199,0.00035724,30]
[374620098,1753381847278,-237.41135199,0.00035724,30]
[374620099,1753381847287,-237.41135199,0.00035724,30]
[374620100,1753381847297,-237.41135199,0.00035724,30]
[374620101,1753381847307,-237.41135199,0.00035724,30]
[374620102,1753381847316,-237.41135199,0.00035724,30]
[374620103,1753381847326,-237.41135199,0.00035724,30]
[374620104,1753381847335,-237.41135199,0.00035724,30]
[374620105,1753381847345,-237.41135199,0.00035724,30]
[374620106,1753381847355,-237.41135199,0.00035724,30]
[374620107,1753381847695,-237.41135199,0.00035724,30]
[374620108,1753381847706,-237.41135199,0.00035724,30]
[374620109,1753381847718,-237.41135199,0.00035724,30]
[374620110,1753381847728,-237.41135199,0.00035724,30]
[374620111,1753381847739,-237.41135199,0.00035724,30]
[374620112,1753381847749,-237.41135199,0.00035724,30]
[374620113,1753381847759,-237.41135199,0.00035724,30]
[374620114,1753381847770,-237.41135199,0.00035724,30]
[374620115,1753381847780,-237.41,0.00035724,30]
[374620116,1753381847789,-154.12778675,0.00035724,30]
[374620117,1753381847799,-154.12778675,0.00035724,30]
[374620118,1753381847808,-154.12778675,0.00035724,30]
[374620119,1753381847818,-154.12778675,0.00035724,30]
[374620120,1753381847831,-154.12778675,0.00035724,30]
[374620121,1753381847842,-154.12778675,0.00035724,30]
[374620122,1753381847852,-154.12778675,0.00035724,30]
[374620123,1753381847862,-154.12778675,0.00035724,30]
[374620124,1753381847874,-154.12778675,0.00035724,30]
[374620125,1753381847883,-154.12,0.00035724,30]
[374620126,1753381847893,-179.81575121,0.00035724,30]
[374620127,1753381847903,-179.81575121,0.00035724,30]
[374620128,1753381847913,-179.81575121,0.00035724,30]
[374620129,1753381847923,-179.81575121,0.00035724,30]
[374620130,1753381847932,-179.81575121,0.00035724,30]
[374620131,1753381847942,-179.81575121,0.00035724,30]
[374620132,1753381847952,-179.81575121,0.00035724,30]
[374620133,1753381847962,-179.81575121,0.00035724,30]
[374620134,1753381847972,-179.81575121,0.00035724,30]
[374620135,1753381847981,-179.81575121,0.00035724,30]
[374620136,1753381847995,-179.81575121,0.00035724,30]
[374620137,1753381848006,-179.81575121,0.00035724,30]
[374620138,1753381848016,-179.81575121,0.00035724,30]
[374620139,1753381848026,-179.81575121,0.00035724,30]
[374620140,1753381848036,-179.81575121,0.00035724,30]
[374620141,1753381848045,-179.81575121,0.00035724,30]
[374620142,1753381848055,-179.81575121,0.00035724,30]
[374620143,1753381848064,-179.81575121,0.00035724,30]
[374620144,1753381848074,-179.81575121,0.00035724,30]
[374620145,1753381848084,-179.81,0.00035724,30]
[374620146,1753381848094,-157.75986127,0.00035724,30]
[374620147,1753381848103,-157.75986127,0.00035724,30]
[374620148,1753381848113,-157.75986127,0.00035724,30]
[374620149,1753381848123,-157.75986127,0.00035724,30]
[374620150,1753381848132,-157.75986127,0.00035724,30]
[374620151,1753381848143,-157.75986127,0.00035724,30]
[374620152,1753381848153,-157.75986127,0.00035724,30]
[374620153,1753381848163,-157.75986127,0.00035724,30]
[374620154,1753381848172,-157.75986127,0.00035724,30]
[374620155,1753381848182,-157.75986127,0.00035724,30]
[374620156,1753381848191,-157.75986127,0.00035724,30]
[374620157,1753381848202,-157.75986127,0.00035724,30]
[374620158,1753381848211,-157.75986127,0.00035724,30]
[374620159,1753381848221,-157.75986127,0.00035724,30]
[374620160,1753381848230,-157.75986127,0.00035724,30]
[374620161,1753381848242,-157.75,0.00035724,30]
[374620162,1753381848251,-294.48507436,0.00035724,30]
[374620163,1753381848261,-294.48507436,0.00035724,30]
[374620164,1753381848271,-294.48507436,0.00035724,30]
[374620165,1753381848281,-294.48507436,0.00035724,30]
[374620166,1753381848290,-294.48507436,0.00035724,30]
[374620167,1753381848300,-294.48507436,0.00035724,30]
[374620168,1753381848310,-294.48507436,0.00035724,30]
[374620169,1753381848320,-294.48507436,0.00035724,30]
[374620170,1753381848331,-294.48507436,0.00035724,30]
[374620171,1753381848342,-294.48507436,0.00035724,30]
[374620172,1753381848351,-294.48507436,0.00035724,30]
[374620173,1753381848362,-294.48507436,0.00035724,30]
[374620174,1753381848372,-294.48507436,0.00035724,30]
[374620175,1753381848382,-294.48507436,0.00035724,30]
[374620176,1753381848392,-294.48507436,0.00035724,30]
[374620177,1753381848403,-294.48507436,0.00035724,30]
[374620178,1753381848413,-294.48507436,0.00035724,30]
[374620179,1753381848423,-294.48507436,0.00035724,30]
[374620180,1753381848434,-294.48507436,0.00035724,30]
[374620181,1753381848445,-294.48,0.00035724,30]
[374620182,1753381848455,-151.45981715,0.00035724,2]
[374620183,1753381848466,-152.67672629,0.00035727,2]
[374620184,1753381848476,-1917.09269375,0.00035727,2]
[374620185,1753381848488,-153.30119565,0.00035727,2]
[374620186,1753381848498,-1863.41377506,0.00035727,2]
[374620187,1753381848508,-150.0,0.00035748,2]
[374620188,1753381848518,-150.0,0.00035765,7]
[374620189,1753381848528,-150.0,0.00035769,2]
[374620190,1753381848538,-150.0,0.00035783,2]
[374620191,1753381848548,-150.0,0.00035784,2]
[374620192,1753381848559,-150.5,0.00035794,120]
[374620193,1753381848569,-225.5,0.00035794,120]
[374620194,1753381848579,-500.0,0.00035797,120]
[374620195,1753381848589,-502.30183015,0.00035797,120]
[374620196,1753381848599,-500.0,0.00035797,120]
[374620197,1753381848609,-500.0,0.00035797,120]
[374620198,1753381848619,-500.0,0.00035797,2]
[374620199,1753381848629,-500.0,0.00035797,120]
[374620200,1753381848639,-3000.0,0.00035797,120]
[374620201,1753381848651,-500.0,0.00035797,120]
[374620202,1753381848663,-666.0,0.00035799,10]
[374620203,1753381848673,-666.0,0.00035799,10]
[374620204,1753381848684,-337.99,0.00035799,2]
[374620205,1753381848694,-233738.0,0.000358,61]
[374620206,1753381848705,-914.51,0.000358,7]
[374620207,1753381848714,-51263.73294731,0.000358,30]
[374620208,1753381848724,-151.0,0.000358,7]
[374620209,1753381848734,-151.0,0.000358,7]
[374620210,1753381848747,-367.532462,0.000358,7]
[374620211,1753381848757,-367.532462,0.000358,7]
[374620212,1753381848767,-151.0,0.000358,7]
[374620213,1753381848777,-260.6339,0.000358,7]
[374620214,1753381848787,-260.6339,0.000358,7]
[374620215,1753381848797,-744.728991,0.000358,7]
[374620216,1753381848807,-744.728991,0.000358,7]
[374620217,1753381848817,-316.016382,0.000358,7]
[374620218,1753381848827,-316.016382,0.000358,7]
[374620219,1753381848838,-151.0,0.000358,7]
[374620220,1753381848848,-151.0,0.000358,7]
[374620221,1753381848858,-1041.0,0.000358,7]
[374620222,1753381848876,-404.263357,0.000358,7]
[374620223,1753381848887,-404.263357,0.000358,7]
[374620224,1753381848896,-463.4416596,0.00035802,2]
[374620225,1753381848907,-259.1442332,0.00035802,2]
[374620226,1753381848917,-40708.4231103,0.00035803,2]
[374620227,1753381848927,-45380.6107489,0.00035803,2]
[374620228,1753381848938,-150.5,0.00035804,120]
[374620229,1753381848950,-150.5,0.00035804,120]
[374620230,1753381848959,-500.0,0.00035804,120]
[374620231,1753381848969,-500.0,0.00035804,120]
[374620232,1753381848979,-150.0,0.00035804,2]
[374620233,1753381848990,-150.0,0.00035807,2]
[374620234,1753381849000,-6585.09827324,0.0003581,7]
[374620235,1753381849010,-480.0,0.00035812,120]
[374620236,1753381849021,-150.5,0.00035814,120]
[374620237,1753381849031,-150.5,0.00035814,120]
[374620238,1753381849042,-150.5,0.00035814,120]
[374620239,1753381849052,-500.0,0.00035814,120]
[374620240,1753381849062,-500.0,0.00035814,120]
[374620241,1753381849072,-500.0,0.00035814,120]
[374620242,1753381849083,-749.86910303,0.00035814,7]
[374620243,1753381849092,-500.0,0.00035815,120]
[374620244,1753381849102,-500.0,0.00035815,120]
[374620245,1753381849113,-175.43632591,0.00035817,2]
[374620246,1753381849123,-175.43632591,0.00035817,2]
[374620247,1753381849133,-150.0,0.00035818,2]
[374620248,1753381849143,-1083.0,0.00035819,5]
[374620249,1753381849154,-1083.0,0.00035819,5]
[374620250,1753381849164,-25041.90290993,0.00035824,2]
[374620251,1753381849173,-25041.90290993,0.00035824,2]
[374620252,1753381849183,-25041.90290993,0.00035824,2]
[374620253,1753381849195,-25041.90290993,0.00035824,2]
[374620254,1753381849204,-174.36821338,0.00035824,2]
[374620255,1753381849214,-174.36821338,0.00035824,2]
[374620256,1753381849224,-151.0,0.00035824,7]
[374620257,1753381849234,-151.0,0.00035824,7]
[374620258,1753381849244,-367.532462,0.00035824,7]
[374620259,1753381849254,-367.532462,0.00035824,7]
[374620260,1753381849265,-151.0,0.00035824,7]
[374620261,1753381849275,-260.6339,0.00035824,7]
[374620262,1753381849284,-260.6339,0.00035824,7]
[374620263,1753381849294,-744.728991,0.00035824,7]
[374620264,1753381849306,-744.728991,0.00035824,7]
[374620265,1753381849316,-316.016382,0.00035824,7]
[374620266,1753381849326,-316.016382,0.00035824,7]
[374620267,1753381849336,-151.0,0.00035824,7]
[374620268,1753381849346,-151.0,0.00035824,7]
[374620269,1753381849356,-404.263357,0.00035824,7]
[374620270,1753381849366,-404.263357,0.00035824,7]
[374620271,1753381849376,-368.06921451,0.00035827,2]
[374620272,1753381849386,-151.0,0.00035827,7]
[374620273,1753381849396,-275.805108,0.00035827,7]
[374620274,1753381849406,-151.0,0.00035827,7]
[374620275,1753381849416,-151.0,0.00035827,7]
[374620276,1753381849426,-151.0,0.00035827,7]
[374620277,1753381849436,-151.0,0.00035827,7]
[374620278,1753381849445,-277.114661,0.00035827,7]
[374620279,1753381849455,-367.532462,0.00035827,7]
[374620280,1753381849465,-367.532462,0.00035827,7]
[374620281,1753381849475,-367.532462,0.00035827,7]
[374620282,1753381849485,-367.532462,0.00035827,7]
[374620283,1753381849496,-367.532462,0.00035827,7]
[374620284,1753381849506,-367.532462,0.00035827,7]
[374620285,1753381849516,-367.532462,0.00035827,7]
[374620286,1753381849525,-367.532462,0.00035827,7]
[374620287,1753381849535,-367.532462,0.00035827,7]
[374620288,1753381849545,-367.532462,0.00035827,7]
[374620289,1753381849560,-367.532462,0.00035827,7]
[374620290,1753381849571,-367.532461,0.00035827,7]
[374620291,1753381849582,-151.0,0.00035827,7]
[374620292,1753381849594,-151.0,0.00035827,7]
[374620293,1753381849605,-151.0,0.00035827,7]
[374620294,1753381849615,-151.0,0.00035827,7]
[374620295,1753381849626,-151.0,0.00035827,7]
[374620296,1753381849637,-259.079452,0.00035827,7]
[374620297,1753381849647,-260.6339,0.00035827,7]
[374620298,1753381849658,-260.6339,0.00035827,7]
[374620299,1753381849669,-260.6339,0.00035827,7]
[374620300,1753381849680,-260.633896,0.00035827,7]
[374620301,1753381849690,-744.728991,0.00035827,7]
[374620302,1753381849700,-744.728987,0.00035827,7]
[374620303,1753381849711,-316.016382,0.00035827,7]
[374620304,1753381849721,-316.016388,0.00035827,7]
[374620305,1753381849732,-151.0,0.00035827,7]
[374620306,1753381849744,-151.0,0.00035827,7]
[374620307,1753381849754,-404.263357,0.00035827,7]
[374620308,1753381849764,-404.263357,0.00035827,7]
[374620309,1753381849775,-404.263357,0.00035827,7]
[374620310,1753381849785,-404.263356,0.00035827,7]
[374620311,1753381849795,-282539.49580188,0.00035827,30]
[374620312,1753381849936,-172.82,0.00035014,2]
[374620313,1753381849948,-77.18,0.00035827,30]
[374620314,1753381849962,-7391.42758837,0.00035827,30]
[374620315,1753381849974,-25334.73251158,0.00035827,30]
[374620316,1753381850018,-2127.60398449,0.00035827,30]
[374620318,1753382143903,161.04,0.00013699,2]
[374620321,1753382283648,300.0,0.000242,120]
[374620322,1753382283682,300.0,0.00023821,120]
[374620323,1753382283753,300.0,0.000242,120]
[374620324,1753382447114,-300.0,0.00028169,120]
[374620325,1753382447143,-201.59787149,0.000319,25]
[374620326,1753382447165,-500.0,0.00031991,7]
[374620327,1753382447187,-500.0,0.00031991,7]
[374620328,1753382447209,-299.99,0.00031991,12]
[374620329,1753382447237,-201.59787137,0.0003209,26]
[374620330,1753382447262,-201.59787137,0.00032281,26]
[374620331,1753382447289,-201.59787137,0.00032471,27]
[374620332,1753382447315,-201.59787137,0.00032662,27]
[374620333,1753382447337,-500.0,0.00032813,7]
[374620334,1753382447358,-500.0,0.00032813,7]
[374620335,1753382447384,-92.02064303,0.00032852,27]
[374620337,1753382508210,-212.76,0.00026617,7]
[374620338,1753382508237,-208.44644816,0.000269,16]
[374620339,1753382508266,-208.44644814,0.000275,17]
[374620340,1753382508293,-208.44644814,0.000281,18]
[374620341,1753382508322,-208.44644814,0.000287,19]
[374620342,1753382508349,-212.76,0.00029034,30]
[374620343,1753382508378,-208.44644814,0.000293,20]
[374620344,1753382508405,-208.44644814,0.000299,21]
[374620345,1753382508431,-208.44644814,0.000305,23]
[374620355,1753382596197,165.48,0.000305,30]
[374620361,1753382669531,208.44644814,0.000289,20]
[374620362,1753382669607,208.44644814,0.00029775,21]
[374620363,1753382670101,208.44644814,0.0003065,23]
[374620381,1753383000262,299.99,0.00029815,12]
[374620393,1753383033780,-150.0,0.00022,2]
[374620394,1753383033790,-293.64585332,0.00022638,2]
[374620395,1753383033799,-152.48,0.00022655,2]
[374620396,1753383033809,-150.0,0.0002318,2]
[374620397,1753383033820,-250.0,0.000242,2]
[374620398,1753383033830,-150.0,0.0002437,2]
[374620399,1753383033840,-300.0,0.00025127,2]
[374620400,1753383033850,-1200.0,0.00025127,2]
[374620401,1753383033860,-300.0,0.00025127,2]
[374620402,1753383033870,-150.0,0.0002555,2]
[374620403,1753383033880,-500.0,0.00025641,2]
[374620404,1753383033890,-388.60940737,0.00025641,2]
[374620405,1753383033903,-111.39059263,0.00025641,2]
[374620406,1753383033913,-500.0,0.00025641,2]
[374620407,1753383033923,-500.0,0.00025641,2]
[374620408,1753383033932,-500.0,0.00025641,2]
[374620409,1753383033942,-500.0,0.00025641,2]
[374620410,1753383033952,-150.0,0.0002673,2]
[374620411,1753383033962,-214.49288337,0.00026954,2]
[374620412,1753383033974,-2254.64,0.00026954,2]
[374620413,1753383033987,-501.84968142,0.00026954,2]
[374620414,1753383034002,-461.78754401,0.00026954,2]
[374620415,1753383034014,-1805.1,0.00026954,2]
[374620416,1753383034025,-4651.77,0.00026954,2]
[374620417,1753383034037,-1097.73118072,0.00026954,2]
[374620418,1753383034048,-1123.46013232,0.00026954,2]
[374620419,1753383034060,-7437.99493772,0.00026954,2]
[374620420,1753383034071,-270.06103284,0.00026954,2]
[374620421,1753383034087,-2059.01589983,0.00026954,2]
[374620422,1753383034104,-979.80008861,0.00026954,2]
[374620423,1753383034116,-1054.53076711,0.00026954,2]
[374620424,1753383034127,-3714.93013536,0.00026954,2]
[374620425,1753383034137,-4846.541369,0.00026981,2]
[374620426,1753383034148,-1000.0,0.00026981,2]
[374620427,1753383034159,-2711.3581989,0.00026981,2]
[374620428,1753383034171,-19069.26471541,0.00026981,2]
[374620429,1753383034181,-27627.16428331,0.00027017,2]
[374620430,1753383034190,-27627.16428331,0.00027028,2]
[374620431,1753383034201,-420.0,0.00027218,2]
[374620432,1753383034210,-271.24,0.00027894,2]
[374620433,1753383034220,-600.0,0.00028444,2]
[374620434,1753383034230,-587.0,0.00029482,2]
[374620435,1753383034240,-271.24,0.00029625,2]
[374620436,1753383034250,-9999.99,0.00029815,2]
[374620437,1753383034259,-150.99,0.00029815,2]
[374620438,1753383034269,-2804.62,0.00029815,2]
[374620439,1753383034279,-150.99,0.00029815,2]
[374620440,1753383034292,-1174.0,0.00029815,2]
[374620441,1753383034302,-150.0,0.000301,2]
[374620442,1753383034312,-509.0,0.00031056,2]
[374620443,1753383034321,-161.04,0.00031311,2]
[374620444,1753383034334,-271.24,0.00031355,2]
[374620445,1753383034343,-823.0,0.00031934,2]
[374620446,1753383034353,-839.91269601,0.00032014,2]
[374620447,1753383034363,-160.0,0.00032014,2]
[374620448,1753383034373,-211.01152796,0.00032018,2]
[374620449,1753383034383,-200.0,0.00032659,2]
[374620450,1753383034393,-150.71,0.00032875,2]
[374620451,1753383034403,-240.13,0.00033038,2]
[374620452,1753383034412,-1000.0,0.00033065,2]
[374620453,1753383034422,-271.24,0.00033085,2]
[374620454,1753383034432,-366.0,0.00033163,2]
[374620455,1753383034442,-365.0,0.00033215,2]
[374620456,1753383034452,-1485.0,0.00033252,2]